[Event "WYCC U18 Girls 2019"]
[Site "Mumbai"]
[Date "2019.10.03"]
[Round "3.8"]
[White "Gomez Barrera, Javiera Belen"]
[Black "Vantika Agrawal"]
[Result "0-1"]
[ECO "B90"]
[WhiteElo "2033"]
[BlackElo "2283"]
[Annotator "NA"]
[PlyCount "127"]
[EventDate "2019.10.02"]
[EventType "swiss"]
[EventCountry "IND"]
[SourceTitle "playchess.com"]
[Source "ChessBase"]
[SourceQuality "1"]
[TimeControl "40/5400+30:1800+30"]

1. e4 {[%emt 0:00:00]} c5 {[%emt 0:03:31]} 2. Nf3 {[%emt 0:00:00]} d6 {[%emt 0:01:06]} 3. d4 {[%emt 0:00:00]} cxd4 {[%emt 0:00:21]} 4. Nxd4 {[%emt 0:00:02]} Nf6 {[%emt 0:00:09]} 5. Nc3 {[%emt 0:00:36]} a6 {[%emt 0:00:10]} 6. Be3 {[%emt 0:07:42]} e5 {[%emt 0:01:10]} 7. Nb3 {[%emt 0:00:14]} Be6 {[%emt 0:00:37]} 8. Be2 {[%emt 0:02:25]} Nbd7 {[%emt 0:05:36]} 9. O-O {[%emt 0:10:14]} Be7 {[%emt 0:08:31]} 10. f4 {[%emt 0:05:41]} exf4 {[%emt 0:04:55]} 11. Rxf4 {[%emt 0:03:58]} O-O {[%emt 0:05:26]} 12. Nd4 {[%emt 0:05:13]} Ne5 {[%emt 0:00:48]} 13. Nf5 {[%emt 0:01:45]} Re8 {[%emt 0:14:34]} 14. Qe1 {[%emt 0:17:06]} Bxf5 {[%emt 0:14:51]} 15. Rxf5 {[%emt 0:03:53]} Qd7 {[%emt 0:05:56]} 16. Qf1 {[%emt 0:21:30]} Rac8 {[%emt 0:04:27]} 17. Rd1 {[%emt 0:05:24]} Qe6 {[%emt 0:03:25]} 18. Bd4 {[%emt 0:07:40]} g6 {[%emt 0:07:40]} 19. Rf4 {[%emt 0:00:59]} Nfd7 {[%emt 0:01:27]} 20. h4 {[%emt 0:03:20]} h5 {[%emt 0:08:09]} 21. a3 {[%emt 0:01:37]} Bf8 {[%emt 0:02:28]} 22. Nd5 {[%emt 0:01:08]} Rxc2 {[%emt 0:02:18]} 23. Bc3 {[%emt 0:00:28]} Rc8 {[%emt 0:01:35]} 24. Bd3 {[%emt 0:00:31]} R2xc3 {[%emt 0:01:08]} 25. bxc3 {[%emt 0:00:29]} Bh6 {[%emt 0:00:50]} 26. Rf2 {[%emt 0:00:32]} Ng4 {[%emt 0:01:14]} 27. Rf3 {[%emt 0:00:28]} Nde5 {[%emt 0:00:16]} 28. Rg3 {[%emt 0:00:30]} b5 {[%emt 0:00:48]} 29. Be2 {[%emt 0:00:32]} Bg7 {[%emt 0:00:31]} 30. Qf4 {[%emt 0:00:30]} Bh6 {[%emt 0:00:31]} 31. Qf1 {[%emt 0:00:04]} Kg7 {[%emt 0:00:29]} 32. Nf4 {[%emt 0:00:56]} Qf6 {[%emt 0:00:30]} 33. Nd5 {[%emt 0:00:31]} Qxh4 {[%emt 0:00:20]} 34. Rh3 {[%emt 0:00:12]} Qd8 {[%emt 0:00:37]} 35. Bxg4 {[%emt 0:00:45]} hxg4 {[%emt 0:00:31]} 36. Rh1 {[%emt 0:00:34]} Qg5 {[%emt 0:00:32]} 37. Qe2 {[%emt 0:00:29]} Nf3+ {[%emt 0:00:30]} 38. Kf1 {[%emt 0:00:28]} Ne5 {[%emt 0:00:29]} 39. Kg1 {[%emt 0:00:32]} Nf3+ {[%emt 0:00:29]} 40. Kf1 {[%emt 0:00:16]} Nd2+ {[%emt 0:00:30]} 41. Ke1 {[%emt 0:09:33]} Nc4 {[%emt 0:02:18]} 42. Qf2 {[%emt 0:02:27]} Re8 {[%emt 0:13:10]} 43. Qf6+ {[%emt 0:11:23]} Qxf6 {[%emt 0:01:17]} 44. Nxf6 {[%emt 0:00:02]} Kxf6 {[%emt 0:01:03]} 45. Rxh6 {[%emt 0:00:02]} Rxe4+ {[%emt 0:00:36]} 46. Kf2 {[%emt 0:00:01]} Re3 {[%emt 0:01:23]} 47. Rc1 {[%emt 0:01:13]} g3+ {[%emt 0:00:13]} 48. Kg1 {[%emt 0:00:14]} Nxa3 {[%emt 0:01:20]} 49. Rh4 {[%emt 0:00:59]} Kg5 {[%emt 0:05:56]} 50. Rh7 {[%emt 0:00:50]} Re7 {[%emt 0:01:16]} 51. Rf1 {[%emt 0:00:41]} Re3 {[%emt 0:02:22]} 52. Rf3 {[%emt 0:02:08]} Rxf3 {[%emt 0:02:28]} 53. gxf3 {[%emt 0:00:02]} f5 {[%emt 0:00:27]} 54. Kg2 {[%emt 0:01:30]} f4 {[%emt 0:00:43]} 55. Ra7 {[%emt 0:00:18]} Nc2 {[%emt 0:01:35]} 56. Rxa6 {[%emt 0:01:04]} Ne1+ {[%emt 0:00:24]} 57. Kh3 {[%emt 0:00:26]} Nxf3 {[%emt 0:00:23]} 58. Rxd6 {[%emt 0:00:02]} Kh5 {[%emt 0:01:23]} 59. Rb6 {[%emt 0:03:34]} Ng5+ {[%emt 0:00:52]} 60. Kg2 {[%emt 0:00:02]} Kh4 {[%emt 0:00:44]} 61. Rxg6 {[%emt 0:00:15]} f3+ {[%emt 0:00:04]} 62. Kf1 {[%emt 0:02:03]} Nh3 {[%emt 0:00:25]} 63. Rh6+ {[%emt 0:01:16]} Kg4 {[%emt 0:00:04]} 64. Rf6 {[%emt 0:02:07]} 0-1

[Event "WYCC U18 Girls 2019"]
[Site "Mumbai"]
[Date "2019.10.03"]
[Round "3.9"]
[White "Harshini A"]
[Black "Kostava, Elene"]
[Result "1-0"]
[ECO "B83"]
[WhiteElo "2230"]
[BlackElo "1833"]
[Annotator "NA"]
[PlyCount "98"]
[EventDate "2019.10.02"]
[EventType "swiss"]
[EventCountry "IND"]
[SourceTitle "playchess.com"]
[Source "ChessBase"]
[SourceQuality "1"]
[TimeControl "40/5400+30:1800+30"]

1. e4 c5 2. Nf3 Nc6 3. d4 cxd4 4. Nxd4 Nf6 5. Nc3 d6 6. Be2 e6 7. O-O Be7 8. Be3 O-O 9. Kh1 Bd7 10. Ndb5 Qb8 11. a4 a6 12. Na3 Qc7 13. Nc4 Ne5 14. Nb6 Rab8 15. f4 Ng6 16. Nxd7 Nxd7 17. a5 Bf6 18. Na4 Rfd8 19. c3 Ne7 20. Nb6 Nc5 21. Qc2 g6 22. Rad1 d5 23. exd5 Nxd5 24. Nxd5 Rxd5 25. Rxd5 exd5 26. f5 Be5 27. Bf3 Ne4 28. Bxe4 dxe4 29. Qxe4 Bxh2 30. Qh4 Bg3 31. Qh6 Qc4 32. Rf4 Qe2 33. f6 Qd1+ 34. Bg1 Qh5+ 35. Qxh5 gxh5 36. Rf5 Kh8 37. Rxh5 Re8 38. Rh3 Be5 39. Bd4 Bxd4 40. cxd4 Re6 41. Rb3 Rxf6 42. Rxb7 Rf5 43. b4 Rd5 44. Rxf7 Rb5 45. d5 Rxd5 46. Rb7 h5 47. b5 axb5 48. a6 Rd8 49. a7 Rc8 1-0

[Event "WYCC U18 Girls 2019"]
[Site "Mumbai"]
[Date "2019.10.03"]
[Round "3.10"]
[White "Priyanka, Kumari"]
[Black "Hng, Mei-En Emmanuelle"]
[Result "1/2-1/2"]
[ECO "B42"]
[WhiteElo "1921"]
[BlackElo "2002"]
[Annotator "NA"]
[PlyCount "142"]
[EventDate "2019.10.02"]
[EventType "swiss"]
[EventCountry "IND"]
[SourceTitle "playchess.com"]
[Source "ChessBase"]
[SourceQuality "1"]
[TimeControl "40/5400+30:1800+30"]

1. e4 {[%emt 0:00:09]} c5 {[%emt 0:00:00]} 2. Nf3 {[%emt 0:00:09]} e6 {[%emt 0:00:00]} 3. d4 {[%emt 0:00:57]} cxd4 {[%emt 0:00:11]} 4. Nxd4 {[%emt 0:00:23]} a6 {[%emt 0:00:14]} 5. Bd3 {[%emt 0:00:28]} Bc5 {[%emt 0:00:28]} 6. Nb3 {[%emt 0:00:14]} Ba7 {[%emt 0:00:24]} 7. Qe2 {[%emt 0:01:13]} d6 {[%emt 0:03:04]} 8. Be3 {[%emt 0:02:46]} Nf6 {[%emt 0:03:29]} 9. O-O {[%emt 0:05:52]} Bxe3 {[%emt 0:05:32]} 10. Qxe3 {[%emt 0:00:17]} Nc6 {[%emt 0:00:16]} 11. c4 {[%emt 0:10:44]} Bd7 {[%emt 0:08:50]} 12. Nc3 {[%emt 0:08:15]} O-O {[%emt 0:13:03]} 13. Rad1 {[%emt 0:04:13]} Qc7 {[%emt 0:07:05]} 14. f4 {[%emt 0:08:22]} Nb4 {[%emt 0:24:21]} 15. Be2 {[%emt 0:03:41]} e5 {[%emt 0:11:37]} 16. fxe5 {[%emt 0:24:09]} dxe5 {[%emt 0:04:23]} 17. Rxf6 {[%emt 0:04:13]} gxf6 {[%emt 0:00:33]} 18. a3 {[%emt 0:00:24]} Nc2 {[%emt 0:02:39]} 19. Qg3+ {[%emt 0:01:28]} Kh8 {[%emt 0:00:51]} 20. Nd5 {[%emt 0:01:39]} Qc6 {[%emt 0:01:05]} 21. Qf2 {[%emt 0:03:10]} f5 {[%emt 0:01:15]} 22. Bf1 {[%emt 0:07:46]} Nd4 {[%emt 0:04:58]} 23. Nxd4 {[%emt 0:00:22]} exd4 {[%emt 0:00:01]} 24. Qxd4+ {[%emt 0:00:21]} f6 {[%emt 0:00:05]} 25. Ne7 {[%emt 0:02:15]} Qxe4 {[%emt 0:02:34]} 26. Qxe4 {[%emt 0:02:56]} fxe4 {[%emt 0:00:01]} 27. Rxd7 {[%emt 0:00:10]} Rad8 {[%emt 0:03:04]} 28. Rxd8 {[%emt 0:03:42]} Rxd8 {[%emt 0:00:01]} 29. Nd5 {[%emt 0:00:13]} Kg7 {[%emt 0:01:30]} 30. Kf2 {[%emt 0:00:23]} b5 {[%emt 0:00:54]} 31. Ke3 {[%emt 0:00:51]} Kf7 {[%emt 0:01:25]} 32. cxb5 {[%emt 0:01:03]} axb5 {[%emt 0:00:01]} 33. Bxb5 {[%emt 0:00:14]} Ke6 {[%emt 0:00:23]} 34. Nc3 {[%emt 0:02:12]} f5 {[%emt 0:00:39]} 35. g4 {[%emt 0:01:11]} fxg4 {[%emt 0:00:46]} 36. Nxe4 {[%emt 0:00:17]} Rf8 {[%emt 0:00:42]} 37. Be2 {[%emt 0:00:44]} h5 {[%emt 0:00:19]} 38. Ng3 {[%emt 0:00:48]} h4 {[%emt 0:00:49]} 39. Ne4 {[%emt 0:00:35]} Kf5 {[%emt 0:00:33]} 40. Nd6+ {[%emt 0:00:30]} Ke6 41. Ne4 {[%emt 0:03:52]} Kf5 {[%emt 0:04:34]} 42. Bd3 {[%emt 0:06:47]} Ke5 {[%emt 0:05:12]} 43. Nd2 {[%emt 0:02:29]} Rg8 {[%emt 0:05:26]} 44. Be4 {[%emt 0:01:38]} g3 {[%emt 0:01:27]} 45. hxg3 {[%emt 0:00:43]} Rxg3+ {[%emt 0:02:49]} 46. Nf3+ {[%emt 0:00:49]} Kd6 {[%emt 0:00:19]} 47. Kf2 {[%emt 0:03:25]} Kc5 {[%emt 0:07:56]} 48. Bd3 {[%emt 0:02:27]} Rg4 {[%emt 0:01:07]} 49. b4+ {[%emt 0:01:53]} Kd5 {[%emt 0:00:45]} 50. Ke3 {[%emt 0:03:07]} h3 {[%emt 0:01:30]} 51. Bf1 {[%emt 0:04:28]} Rg3 {[%emt 0:02:55]} 52. Kf2 {[%emt 0:02:38]} h2 {[%emt 0:01:22]} 53. Bg2 {[%emt 0:00:18]} Rg7 {[%emt 0:00:17]} 54. Nxh2+ {[%emt 0:01:57]} Kc4 {[%emt 0:00:10]} 55. Bc6 {[%emt 0:00:52]} Ra7 {[%emt 0:00:31]} 56. b5 {[%emt 0:00:33]} Rxa3 {[%emt 0:02:11]} 57. Nf3 {[%emt 0:00:11]} Kc5 {[%emt 0:00:34]} 58. Nd2 {[%emt 0:00:40]} Ra7 {[%emt 0:01:05]} 59. Ke3 {[%emt 0:00:25]} Rc7 {[%emt 0:00:25]} 60. Nb3+ {[%emt 0:00:22]} Kb6 {[%emt 0:00:25]} 61. Nd4 {[%emt 0:00:10]} Rh7 {[%emt 0:00:29]} 62. Kd3 {[%emt 0:00:38]} Kc5 {[%emt 0:00:32]} 63. Ne6+ {[%emt 0:00:50]} Kd6 {[%emt 0:00:44]} 64. Ng5 {[%emt 0:00:35]} Rh4 {[%emt 0:00:36]} 65. Ne4+ {[%emt 0:00:15]} Kc7 {[%emt 0:00:04]} 66. Nc3 {[%emt 0:01:01]} Kb6 {[%emt 0:00:32]} 67. Kc2 {[%emt 0:00:32]} Rc4 {[%emt 0:00:27]} 68. Be8 {[%emt 0:00:30]} Rc8 {[%emt 0:00:08]} 69. Bd7 {[%emt 0:00:25]} Rc7 {[%emt 0:00:08]} 70. Bf5 {[%emt 0:00:35]} Rxc3+ {[%emt 0:00:06]} 71. Kxc3 {[%emt 0:00:03]} Kxb5 {[%emt 0:00:02]} 1/2-1/2

[Event "WYCC U18 Girls 2019"]
[Site "Mumbai"]
[Date "2019.10.03"]
[Round "3.13"]
[White "Zeliantsova, Kseniya"]
[Black "Yan, Tianqi"]
[Result "0-1"]
[ECO "B47"]
[WhiteElo "1994"]
[BlackElo "2236"]
[Annotator "NA"]
[PlyCount "66"]
[EventDate "2019.10.02"]
[EventType "swiss"]
[EventCountry "IND"]
[SourceTitle "playchess.com"]
[Source "ChessBase"]
[SourceQuality "1"]
[TimeControl "40/5400+30:1800+30"]

1. e4 {[%emt 0:00:00]} c5 {[%emt 0:00:00]} 2. Nf3 {[%emt 0:00:00]} e6 {[%emt 0:00:00]} 3. d4 {[%emt 0:00:00]} cxd4 {[%emt 0:00:00]} 4. Nxd4 {[%emt 0:00:00]} Nc6 {[%emt 0:00:07]} 5. Nc3 {[%emt 0:00:09]} Qc7 {[%emt 0:00:16]} 6. Be2 {[%emt 0:00:31]} a6 {[%emt 0:00:06]} 7. O-O {[%emt 0:00:15]} Nf6 {[%emt 0:03:41]} 8. Be3 {[%emt 0:01:30]} Bb4 {[%emt 0:00:23]} 9. Na4 {[%emt 0:01:50]} Rb8 {[%emt 0:00:38]} 10. Nxc6 {[%emt 0:02:04]} bxc6 {[%emt 0:00:40]} 11. Bd3 {[%emt 0:04:22]} d5 {[%emt 0:01:46]} 12. exd5 {[%emt 0:02:47]} cxd5 {[%emt 0:00:14]} 13. Bd4 {[%emt 0:10:21]} Bd6 {[%emt 0:06:42]} 14. Bxf6 {[%emt 0:03:39]} Bxh2+ {[%emt 0:03:16]} 15. Kh1 {[%emt 0:00:03]} gxf6 {[%emt 0:00:05]} 16. Qh5 {[%emt 0:00:25]} Be5 {[%emt 0:04:46]} 17. Rfe1 {[%emt 0:02:41]} Rb4 {[%emt 0:07:12]} 18. Nc3 {[%emt 0:04:32]} Rg8 {[%emt 0:00:56]} 19. a3 {[%emt 0:18:34]} Rbg4 {[%emt 0:01:04]} 20. Bf1 {[%emt 0:00:48]} Bxc3 {[%emt 0:02:49]} 21. bxc3 {[%emt 0:00:56]} Qf4 {[%emt 0:00:10]} 22. g3 {[%emt 0:06:13]} Qxf2 {[%emt 0:00:25]} 23. Qh2 {[%emt 0:05:09]} Qxg3 {[%emt 0:02:04]} 24. Qxg3 {[%emt 0:00:47]} Rxg3 {[%emt 0:00:03]} 25. c4 {[%emt 0:01:12]} dxc4 {[%emt 0:01:11]} 26. Kh2 {[%emt 0:01:07]} R3g5 {[%emt 0:01:40]} 27. Re3 {[%emt 0:00:14]} e5 {[%emt 0:00:37]} 28. Rb1 {[%emt 0:00:15]} Rh5+ {[%emt 0:01:49]} 29. Bh3 {[%emt 0:00:05]} Bxh3 {[%emt 0:00:04]} 30. Rxh3 {[%emt 0:00:05]} Rxh3+ 31. Kxh3 {[%emt 0:00:06]} Ke7 {[%emt 0:01:53]} 32. Rb4 {[%emt 0:00:22]} e4 {[%emt 0:01:27]} 33. Rxc4 {[%emt 0:00:06]} f5 {[%emt 0:00:03]} 0-1

[Event "WYCC U18 Girls 2019"]
[Site "Mumbai"]
[Date "2019.10.03"]
[Round "3.14"]
[White "Pandey Srishti"]
[Black "Tanishka Kotia"]
[Result "1/2-1/2"]
[ECO "E16"]
[WhiteElo "1963"]
[BlackElo "2090"]
[Annotator "NA"]
[PlyCount "59"]
[EventDate "2019.10.02"]
[EventType "swiss"]
[EventCountry "IND"]
[SourceTitle "playchess.com"]
[Source "ChessBase"]
[SourceQuality "1"]
[TimeControl "40/5400+30:1800+30"]

1. d4 Nf6 2. Nf3 e6 3. g3 b6 4. Bg2 Bb7 5. c4 Bb4+ 6. Bd2 Bxd2+ 7. Qxd2 O-O 8. O-O Ne4 9. Qc2 f5 10. Nfd2 d5 11. Nc3 c6 12. Nf3 Nd7 13. Rad1 Qf6 14. b3 Rac8 15. Qb2 Nxc3 16. Qxc3 Qh6 17. Ne5 Nxe5 18. dxe5 f4 19. Rd3 Rf5 20. h4 Rcf8 21. e4 R5f7 22. exd5 cxd5 23. cxd5 fxg3 24. fxg3 Rxf1+ 25. Bxf1 Bxd5 26. Bg2 Bxg2 27. Kxg2 Qh5 28. Rf3 Rxf3 29. Qxf3 Qxf3+ 30. Kxf3 1/2-1/2

[Event "WYCC U18 Girls 2019"]
[Site "Mumbai"]
[Date "2019.10.04"]
[Round "4.1"]
[White "Kucharska, Honorata"]
[Black "Shuvalova, Polina"]
[Result "1/2-1/2"]
[ECO "A05"]
[WhiteElo "2114"]
[BlackElo "2412"]
[Annotator "NA"]
[PlyCount "43"]
[EventDate "2019.10.02"]
[EventType "swiss"]
[EventCountry "IND"]
[SourceTitle "playchess.com"]
[Source "ChessBase"]
[SourceQuality "1"]
[TimeControl "40/5400+30:1800+30"]

1. Nf3 {[%emt 0:00:00]} Nf6 {[%emt 0:00:00]} 2. g3 {[%emt 0:00:00]} d5 {[%emt 0:01:14]} 3. Bg2 {[%emt 0:00:01]} g6 {[%emt 0:01:13]} 4. O-O {[%emt 0:00:43]} Bg7 {[%emt 0:00:03]} 5. d3 {[%emt 0:00:17]} O-O {[%emt 0:00:26]} 6. Nbd2 {[%emt 0:00:22]} c5 {[%emt 0:00:09]} 7. e4 {[%emt 0:00:47]} Nc6 {[%emt 0:00:21]} 8. Re1 {[%emt 0:02:36]} h6 {[%emt 0:06:08]} 9. c3 {[%emt 0:04:45]} e5 {[%emt 0:02:22]} 10. Qe2 {[%emt 0:02:07]} Re8 {[%emt 0:00:30]} 11. a3 {[%emt 0:00:30]} d4 {[%emt 0:00:30]} 12. c4 {[%emt 0:00:30]} a6 {[%emt 0:00:30]} 13. Rf1 {[%emt 0:00:30]} Bd7 {[%emt 0:00:30]} 14. Ne1 {[%emt 0:00:30]} Qc8 {[%emt 0:00:30]} 15. Nb3 {[%emt 0:00:30]} b6 {[%emt 0:00:30]} 16. f4 {[%emt 0:00:30]} Rb8 {[%emt 0:00:30]} 17. Nf3 {[%emt 0:00:30]} Ng4 {[%emt 0:00:30]} 18. h3 {[%emt 0:00:30]} Ne3 {[%emt 0:00:30]} 19. Bxe3 {[%emt 0:00:30]} dxe3 {[%emt 0:00:30]} 20. Qxe3 {[%emt 0:00:30]} exf4 {[%emt 0:00:30]} 21. Qxf4 {[%emt 0:00:30]} Be6 {[%emt 0:00:30]} 22. Kh2 {[%emt 0:00:30]} 1/2-1/2

[Event "WYCC U18 Girls 2019"]
[Site "Mumbai"]
[Date "2019.10.04"]
[Round "4.2"]
[White "Munkhzul, Turmunkh"]
[Black "Shpanko, Nadiia"]
[Result "1/2-1/2"]
[ECO "B13"]
[WhiteElo "2332"]
[BlackElo "2213"]
[Annotator "NA"]
[PlyCount "145"]
[EventDate "2019.10.02"]
[EventType "swiss"]
[EventCountry "IND"]
[SourceTitle "playchess.com"]
[Source "ChessBase"]
[SourceQuality "1"]
[TimeControl "40/5400+30:1800+30"]

1. e4 {[%emt 0:00:00]} c6 {[%emt 0:00:00]} 2. d4 {[%emt 0:01:22]} d5 {[%emt 0:00:00]} 3. exd5 {[%emt 0:02:01]} cxd5 {[%emt 0:00:00]} 4. Bd3 {[%emt 0:00:08]} Nc6 {[%emt 0:00:00]} 5. c3 {[%emt 0:00:11]} Qc7 {[%emt 0:00:12]} 6. Ne2 {[%emt 0:02:01]} Bg4 {[%emt 0:03:04]} 7. O-O {[%emt 0:05:50]} Bh5 {[%emt 0:02:49]} 8. Na3 {[%emt 0:05:57]} a6 {[%emt 0:05:51]} 9. Bf4 {[%emt 0:06:34]} Qxf4 {[%emt 0:02:11]} 10. Nxf4 {[%emt 0:00:05]} Bxd1 {[%emt 0:00:06]} 11. Raxd1 {[%emt 0:02:28]} e6 {[%emt 0:02:05]} 12. Nc2 {[%emt 0:02:22]} Bd6 {[%emt 0:01:03]} 13. Ne2 {[%emt 0:01:15]} Nf6 {[%emt 0:01:13]} 14. f4 {[%emt 0:06:12]} g6 {[%emt 0:02:06]} 15. Ne3 {[%emt 0:02:39]} h5 {[%emt 0:08:50]} 16. g3 {[%emt 0:00:53]} Bc7 {[%emt 0:07:01]} 17. Kg2 {[%emt 0:01:13]} Ne7 18. Ng1 {[%emt 0:05:01]} Nf5 {[%emt 0:14:03]} 19. Rfe1 {[%emt 0:00:45]} Nxe3+ {[%emt 0:01:37]} 20. Rxe3 {[%emt 0:00:06]} h4 {[%emt 0:01:44]} 21. Nf3 {[%emt 0:04:11]} hxg3 {[%emt 0:01:15]} 22. hxg3 {[%emt 0:00:09]} Kf8 {[%emt 0:04:11]} 23. Re2 {[%emt 0:05:05]} Kg7 {[%emt 0:02:34]} 24. Rg1 {[%emt 0:12:50]} Ng4 {[%emt 0:03:55]} 25. Ne5 {[%emt 0:04:37]} Rh2+ {[%emt 0:01:59]} 26. Kf3 {[%emt 0:00:34]} Nxe5+ {[%emt 0:00:15]} 27. fxe5 {[%emt 0:00:53]} Rah8 {[%emt 0:00:57]} 28. Reg2 {[%emt 0:06:31]} Rh1 {[%emt 0:01:28]} 29. Rxh1 {[%emt 0:02:45]} Rxh1 {[%emt 0:00:03]} 30. Rf2 {[%emt 0:00:14]} Rh8 {[%emt 0:00:27]} 31. Kg2 {[%emt 0:01:31]} Rc8 {[%emt 0:00:17]} 32. a4 {[%emt 0:00:17]} Bb6 {[%emt 0:01:11]} 33. Rf1 {[%emt 0:00:14]} Rc7 {[%emt 0:00:26]} 34. Ra1 {[%emt 0:00:46]} Rc8 35. Ra3 {[%emt 0:01:36]} Ba5 {[%emt 0:06:41]} 36. Rb3 {[%emt 0:02:52]} Rc7 {[%emt 0:00:18]} 37. Ra3 {[%emt 0:00:27]} Rc8 {[%emt 0:00:09]} 38. Ra1 {[%emt 0:02:55]} Kh6 {[%emt 0:00:52]} 39. Kf3 {[%emt 0:00:59]} Kg7 {[%emt 0:00:21]} 40. Ra3 {[%emt 0:04:13]} Kh6 {[%emt 0:00:40]} 41. Ke3 {[%emt 0:32:49]} Kg7 {[%emt 0:30:17]} 42. Be2 {[%emt 0:00:23]} Kh6 {[%emt 0:01:14]} 43. Rb3 {[%emt 0:00:09]} Rc7 {[%emt 0:00:14]} 44. Kf4 {[%emt 0:00:39]} Kg7 {[%emt 0:00:15]} 45. Bf3 {[%emt 0:00:48]} Kg8 {[%emt 0:00:19]} 46. Kg5 {[%emt 0:03:57]} Kg7 {[%emt 0:01:51]} 47. Be2 {[%emt 0:03:26]} Kh7 {[%emt 0:01:28]} 48. Ra3 {[%emt 0:00:32]} Rc8 {[%emt 0:00:06]} 49. Kf6 {[%emt 0:00:00]} Kg8 {[%emt 0:00:00]} 50. Kg5 {[%emt 0:00:00]} Kg7 {[%emt 0:00:00]} 51. Rb3 {[%emt 0:00:00]} Rc7 {[%emt 0:00:00]} 52. Bg4 {[%emt 0:00:00]} Rd7 {[%emt 0:00:00]} 53. Kf4 {[%emt 0:00:00]} Rc7 {[%emt 0:00:00]} 54. Ke3 {[%emt 0:00:00]} Kg8 {[%emt 0:00:00]} 55. Kd3 {[%emt 0:00:00]} Kf8 {[%emt 0:00:00]} 56. Bf3 {[%emt 0:00:00]} Kg7 {[%emt 0:00:00]} 57. Bg2 {[%emt 0:00:00]} Kf8 {[%emt 0:00:00]} 58. Ra3 {[%emt 0:00:00]} Rc8 {[%emt 0:00:00]} 59. Ra1 {[%emt 0:00:00]} Kg7 {[%emt 0:00:00]} 60. Rc1 {[%emt 0:00:00]} Bd8 {[%emt 0:00:00]} 61. b3 {[%emt 0:00:00]} b5 {[%emt 0:00:00]} 62. axb5 {[%emt 0:00:00]} axb5 {[%emt 0:00:00]} 63. Ra1 {[%emt 0:00:00]} Rb8 {[%emt 0:00:00]} 64. b4 {[%emt 0:00:00]} Kf8 {[%emt 0:00:00]} 65. Kc2 {[%emt 0:00:00]} Ke8 {[%emt 0:00:00]} 66. Rh1 {[%emt 0:00:00]} Rb7 {[%emt 0:02:49]} 67. Bf1 {[%emt 0:00:00]} Kd7 {[%emt 0:02:20]} 68. Rh8 {[%emt 0:00:00]} Be7 {[%emt 0:01:17]} 69. Rh7 {[%emt 0:00:00]} Ke8 {[%emt 0:00:05]} 70. Bd3 {[%emt 0:00:00]} Rb6 {[%emt 0:00:51]} 71. Rh8+ {[%emt 0:00:00]} Kd7 {[%emt 0:00:08]} 72. Kd2 {[%emt 0:00:00]} Bg5+ {[%emt 0:00:28]} 73. Ke2 {[%emt 0:00:00]} 1/2-1/2

[Event "WYCC U18 Girls 2019"]
[Site "Mumbai"]
[Date "2019.10.04"]
[Round "4.3"]
[White "Vantika Agrawal"]
[Black "Serikbay, Assel"]
[Result "1/2-1/2"]
[ECO "A06"]
[WhiteElo "2283"]
[BlackElo "2208"]
[Annotator "NA"]
[PlyCount "86"]
[EventDate "2019.10.02"]
[EventType "swiss"]
[EventCountry "IND"]
[SourceTitle "playchess.com"]
[Source "ChessBase"]
[SourceQuality "1"]
[TimeControl "40/5400+30:1800+30"]

1. Nf3 {[%emt 0:00:57]} d5 {[%emt 0:00:00]} 2. g3 {[%emt 0:00:39]} Nf6 {[%emt 0:00:00]} 3. Bg2 {[%emt 0:00:14]} c5 {[%emt 0:00:12]} 4. O-O {[%emt 0:00:27]} Nc6 {[%emt 0:00:14]} 5. d4 {[%emt 0:01:57]} cxd4 {[%emt 0:00:49]} 6. Nxd4 {[%emt 0:00:48]} e5 {[%emt 0:00:40]} 7. Nxc6 {[%emt 0:00:58]} bxc6 {[%emt 0:00:06]} 8. c4 {[%emt 0:05:45]} Be6 {[%emt 0:00:15]} 9. Nc3 {[%emt 0:09:58]} Rc8 {[%emt 0:03:01]} 10. cxd5 {[%emt 0:12:48]} cxd5 {[%emt 0:04:18]} 11. Bg5 {[%emt 0:01:34]} d4 {[%emt 0:03:42]} 12. Ne4 {[%emt 0:03:25]} Be7 {[%emt 0:00:19]} 13. Nxf6+ {[%emt 0:01:28]} Bxf6 {[%emt 0:00:20]} 14. Bxf6 {[%emt 0:00:43]} gxf6 {[%emt 0:00:13]} 15. Qd2 {[%emt 0:18:52]} O-O {[%emt 0:00:19]} 16. f4 {[%emt 0:02:51]} Kg7 {[%emt 0:09:58]} 17. Rf2 {[%emt 0:15:39]} Qe7 {[%emt 0:17:00]} 18. h4 {[%emt 0:05:25]} h6 {[%emt 0:06:49]} 19. e3 {[%emt 0:08:11]} Rfd8 {[%emt 0:03:37]} 20. exd4 {[%emt 0:02:39]} Rxd4 {[%emt 0:00:29]} 21. Qe3 {[%emt 0:00:42]} Qc5 {[%emt 0:02:57]} 22. Kh2 {[%emt 0:00:54]} Rc4 {[%emt 0:03:30]} 23. Re1 {[%emt 0:03:27]} Qxe3 {[%emt 0:05:07]} 24. Rxe3 {[%emt 0:00:05]} Rc2 {[%emt 0:00:58]} 25. Ree2 {[%emt 0:00:26]} Rxe2 {[%emt 0:01:22]} 26. Rxe2 {[%emt 0:00:04]} exf4 {[%emt 0:00:14]} 27. gxf4 {[%emt 0:01:12]} Bxa2 {[%emt 0:00:22]} 28. Kg3 {[%emt 0:01:12]} f5 {[%emt 0:01:17]} 29. Re5 {[%emt 0:00:23]} Be6 {[%emt 0:01:23]} 30. Ra5 {[%emt 0:00:17]} Rb8 {[%emt 0:01:02]} 31. Rxa7 {[%emt 0:00:40]} Rb3+ {[%emt 0:00:07]} 32. Bf3 {[%emt 0:00:45]} Rxb2 {[%emt 0:00:38]} 33. Ra3 {[%emt 0:00:31]} Kf6 {[%emt 0:01:46]} 34. Ra7 {[%emt 0:00:20]} Rd2 {[%emt 0:01:28]} 35. Bg2 {[%emt 0:00:28]} Bd5 {[%emt 0:02:22]} 36. Bxd5 {[%emt 0:00:27]} Rxd5 {[%emt 0:00:05]} 37. Ra6+ {[%emt 0:00:10]} Kg7 {[%emt 0:00:03]} 38. Rb6 {[%emt 0:00:52]} Rd1 {[%emt 0:01:08]} 39. Ra6 {[%emt 0:00:39]} Rg1+ {[%emt 0:00:11]} 40. Kf3 {[%emt 0:00:33]} Rg4 {[%emt 0:04:21]} 41. h5 {[%emt 0:05:44]} Rh4 {[%emt 0:02:19]} 42. Kg3 {[%emt 0:00:16]} Rg4+ {[%emt 0:00:56]} 43. Kf3 {[%emt 0:00:10]} Rh4 {[%emt 0:00:14]} 1/2-1/2

[Event "WYCC U18 Girls 2019"]
[Site "Mumbai"]
[Date "2019.10.04"]
[Round "4.4"]
[White "Cervantes Landeiro, Thalia"]
[Black "Obolentseva, Alexandra"]
[Result "1/2-1/2"]
[ECO "A41"]
[WhiteElo "2176"]
[BlackElo "2282"]
[Annotator "NA"]
[PlyCount "49"]
[EventDate "2019.10.02"]
[EventType "swiss"]
[EventCountry "IND"]
[SourceTitle "playchess.com"]
[Source "ChessBase"]
[SourceQuality "1"]
[TimeControl "40/5400+30:1800+30"]

1. d4 {[%emt 0:00:00]} d6 {[%emt 0:00:00]} 2. c4 {[%emt 0:00:00]} e5 {[%emt 0:00:00]} 3. d5 {[%emt 0:00:00]} f5 {[%emt 0:00:20]} 4. e4 {[%emt 0:00:07]} Nf6 {[%emt 0:00:12]} 5. Nc3 {[%emt 0:00:24]} Be7 {[%emt 0:00:07]} 6. exf5 {[%emt 0:01:23]} Bxf5 {[%emt 0:00:40]} 7. Nge2 {[%emt 0:01:24]} O-O {[%emt 0:06:27]} 8. Ng3 {[%emt 0:00:48]} Bg6 {[%emt 0:02:02]} 9. Bd3 {[%emt 0:02:37]} Qe8 {[%emt 0:00:10]} 10. O-O {[%emt 0:01:57]} Nbd7 11. f3 {[%emt 0:04:44]} Nc5 {[%emt 0:01:14]} 12. Bxg6 {[%emt 0:02:34]} Qxg6 {[%emt 0:00:07]} 13. Be3 {[%emt 0:03:24]} Nd3 {[%emt 0:01:01]} 14. Qc2 {[%emt 0:03:11]} Nf4 {[%emt 0:04:18]} 15. Qxg6 {[%emt 0:04:34]} hxg6 {[%emt 0:00:41]} 16. Rad1 {[%emt 0:04:07]} N4h5 {[%emt 0:06:18]} 17. Nge4 {[%emt 0:15:16]} Nxe4 {[%emt 0:00:10]} 18. Nxe4 {[%emt 0:00:12]} Nf6 {[%emt 0:00:05]} 19. Ng5 {[%emt 0:08:41]} Rfc8 {[%emt 0:00:14]} 20. Rfe1 {[%emt 0:02:18]} Nd7 {[%emt 0:01:30]} 21. Ne4 {[%emt 0:03:00]} Nf6 {[%emt 0:03:09]} 22. Ng5 {[%emt 0:00:48]} Nd7 {[%emt 0:03:02]} 23. Ne4 {[%emt 0:00:15]} Nf6 {[%emt 0:00:20]} 24. Nc3 {[%emt 0:02:15]} Nd7 {[%emt 0:01:59]} 25. Ne4 {[%emt 0:05:49]} 1/2-1/2